Cogmind - Beta 14 @@@ ROGUE MODE // 2025.03.18 @ 18:37:36 Player: potator Result: Destroyed by RK-UX1(R) with Subdweller Machine Gun Performance ------------- Evolutions (0) 0 Regions Visited (2) 400 Robots Destroyed (16) 80 Value Destroyed (432) 432 Prototype IDs (1) 20 Alien Tech Used (0) 0 Bonus (0) 0 TOTAL SCORE: 932 Bonus ------- None Cogmind --------- Core Integrity 0/250 Matter 282/300 Energy 280/280 System Corruption 0% Temperature Cool (0) Movement Core (350) Ox6 Location -10/Subcaves Parts ------- > --- POWER (1) -------- Cooled Ion Engine > --- PROPULSION (2) --- (None) > --- UTILITY (2) ------ Small Storage Unit Signal Interpreter > --- WEAPON (2) ------- Particle Cannon Assault Rifle > --- INVENTORY (8) ---- Cooled Ion Engine Sensor Array ECM Suite Particle Cannon Grenade Launcher Datajack Peak State ------------ > --- POWER ------------ Cooled Ion Engine > --- PROPULSION ------- Light Treads Makeshift Leg > --- UTILITY ---------- Small Storage Unit Signal Interpreter > --- WEAPON ----------- Particle Cannon Battle Rifle > --- INVENTORY -------- Cooled Ion Engine Sensor Array ECM Suite Particle Cannon Assault Rifle Grenade Launcher Datajack [Rating: 15] Favorites ----------- Power Ion Engine Engine Ion Engine Propulsion Light Treads Treads Light Treads Leg Makeshift Leg Utility Small Storage Unit Device Sensor Array Storage Small Storage Unit Processor Signal Interpreter Weapon Assault Rifle Energy Cannon Particle Cannon Ballistic Gun Assault Rifle Build | -11 -10 -10 ------- Run | Yrd Mat Sub Slots Evolved . | . . . Power . | . . . Propulsion . | . . . Utility . | . . . Weapon . | . . . Parts Attached 19 | 6 10 3 Power 4 | 1 3 . Engine 4 | 1 3 . Core . | . . . Reactor . | . . . Propulsion 4 | 2 1 1 Treads 3 | 2 1 . Leg 1 | . . 1 Wheel . | . . . Hover . | . . . Flight . | . . . Utility 5 | 1 4 . Device 3 | . 3 . Storage 1 | 1 . . Processor 1 | . 1 . Hackware . | . . . Protection . | . . . Artifact . | . . . Weapon 6 | 2 2 2 Energy Gun . | . . . Energy Cannon 1 | . 1 . Ballistic Gun 5 | 2 1 2 Ballistic Cannon . | . . . Launcher . | . . . Special Weapon . | . . . Impact Weapon . | . . . Slashing Weapon . | . . . Piercing Weapon . | . . . Special Melee Weapon . | . . . Unidentified Prototypes 1 | . 1 . Parts Lost 6 | . 2 4 Power 1 | . 1 . Propulsion 3 | . . 3 Utility . | . . . Weapon 2 | . 1 1 Highest Loss Streak 4 | . 2 4 To Critical Strikes 1 | . . 1 Average Slot Usage (%) 94 | . 94 97 Engine 12 | . 12 14 Treads 27 | . 27 25 Device 8 | . 10 . Storage 14 | . 14 14 Processor 2 | . 1 14 Energy Cannon 5 | . 4 14 Ballistic Gun 21 | . 22 14 Peak Build Rating 15 | 6 11 15 Average Rating 8 | 3 7 11 On Entrance 5 | . 6 11 Naked Turns . | . . . Heaviest Build 20 | 14 20 19 Greatest Support 40 | 40 40 40 Greatest Overweight (x) 6 | 1 . 6 Average Overweight (x) . | . . . Largest Inventory Capacity 8 | 8 8 8 Average Capacity 7 | 6 8 8 Most Carried 8 | 3 8 8 Average Carried 5 | . 4 7 Final Capacity 8 | 8 8 8 Final Carried 8 | . 8 6 Class Distribution -------------------- 100% | Mutant Dominant Class ---------------- Mutant | -10/Materials Mutant | -10/Subcaves Resources | -11 -10 -10 ----------- Run | Yrd Mat Sub Matter Collected 654 | 211 326 117 Remotely . | . . . Salvage Created 454 | . 371 83 Parts 32 | . 30 2 Haulers Intercepted . | . . . Recyclers Shooed . | . . . Parts Field Recycled . | . . . Retrieved Matter . | . . . Parts Self-Destructed . | . . . Prevented . | . . . Kills | -11 -10 -10 ------- Run | Yrd Mat Sub Combat Hostiles Destroyed 14 | . 12 2 Guns 14 | . 12 2 Classes Destroyed 4 | . 3 1 Watcher 2 | . 2 . Swarmer 6 | . 6 . Grunt 6 | . 6 . Subdweller 2 | . . 2 Best Kill Streak 3 | . 3 2 Combat Bots Only 3 | . 3 2 Max Kills in Single Turn 1 | . 1 1 Gunslinging . | . . . Exploded . | . . . Melee . | . . . Uniques/NPCs Destroyed . | . . . Combat | -11 -10 -10 -------- Run | Yrd Mat Sub Hostile Shots Fired 112 | . 76 36 Missed 36 | . 25 11 Damage Taken 1175 | . 651 524 Core 270 | . 122 148 Absorbed by Shields . | . . . Regen/Repaired (Parts) 70 | . 70 . Core Remaining (%) 100 | 100 . . Volleys Fired 65 | . 47 18 Largest 2 | . 2 2 Hottest 93 | . 88 93 Shots Fired 123 | . 88 35 Gun 104 | . 87 17 Cannon 19 | . 1 18 Launcher . | . . . Special . | . . . Kinetic 104 | . 87 17 Thermal 19 | . 1 18 Explosive . | . . . Electromagnetic . | . . . Robot Hit Streak 17 | . 8 17 Robot Miss Streak 4 | . 4 1 Penetration Max . | . . . Secondary Targets 2 | . 2 . Max Gunslinging Chain 1 | . 1 . Shots Hit Robots 88 | . 56 32 Core Hits 27 | . 23 4 Critical Kills . | . . . Critical Parts Destroyed . | . . . Critical Strikes 1 | . . 1 Destroy 1 | . . 1 Melee Attacks . | . . . Impact . | . . . Slashing . | . . . Piercing . | . . . Sneak Attacks . | . . . Combat Hostiles . | . . . Follow-up Attacks . | . . . Damage Inflicted 1292 | . 764 528 Guns 967 | . 764 203 Cannons 325 | . . 325 Explosions . | . . . Melee . | . . . Ramming . | . . . Kinetic 967 | . 764 203 Thermal 325 | . . 325 Explosive . | . . . Electromagnetic . | . . . Impact . | . . . Slashing . | . . . Piercing . | . . . Highest Corruption . | . . . Average Corruption . | . . . Corruption Purged . | . . . Corruption Blocked . | . . . Overload Shots . | . . . Overflow Damage . | . . . Projectiles . | . . . Explosions . | . . . Melee . | . . . Knockbacks . | . . . Impact . | . . . Kinetic . | . . . Secondary . | . . . Self-Inflicted Damage 73 | . 73 . Shots 1 | . 1 . Rammed . | . . . Targets Rammed . | . . . Kicked . | . . . Crushed . | . . . Highest Temperature 21 | . 21 14 Average Temperature 5 | . 5 7 Received Heat Transfer 423 | . 321 102 Siege Activations . | . . . Robots Corrupted . | . . . Combat Hostiles . | . . . Parts Fried . | . . . Impact Corruptions . | . . . Robots Melted . | . . . Combat Hostiles . | . . . Parts Melted 1 | . . 1 Heat Transferred 592 | . . 592 Parts Sabotaged . | . . . Parts Stolen . | . . . Parts Stripped . | . . . Power Chain Reactions . | . . . Alert | -11 -10 -10 ------- Run | Yrd Mat Sub Peak Influence 155 | . 155 . Initial . | . . . Average 52 | . 54 . Maximum Alert Level . | . . . Low Security (%) 100 | 100 100 . Level 1 . | . . . Level 2 . | . . . Level 3 . | . . . Level 4 . | . . . Level 5 . | . . . High Security . | . . . Max Security . | . . . Squads Dispatched . | . . . Investigation . | . . . Extermination . | . . . Reinforcement . | . . . Assault . | . . . Garrison . | . . . Intercept . | . . . Searches Triggered . | . . . Construction Impeded . | . . . Haulers Reinforced . | . . . Active Scanning Responses . | . . . Cargo Convoy Interrupts . | . . . Stealth | -11 -10 -10 --------- Run | Yrd Mat Sub Distress Signals . | . . . Communications Jammed . | . . . Distress Signals . | . . . Times Spotted 22 | . 18 4 Peak Tracking Total 4 | . 4 2 Tactical Retreats . | . . . Traps | -11 -10 -10 ------- Run | Yrd Mat Sub Traps Triggered . | . . . Indirectly . | . . . Trap Hack Attempts . | . . . Triggered . | . . . Disarmed . | . . . Reprogrammed . | . . . Reused . | . . . Traps Extracted . | . . . Installed . | . . . Triggered . | . . . Machines | -11 -10 -10 ---------- Run | Yrd Mat Sub Machines Disabled 3 | . 3 . Max in Single Turn 2 | . 2 . Machines Repaired . | . . . Machines Dismantled . | . . . Machines Sabotaged . | . . . Overloaded Fab Kills . | . . . Hacking | -11 -10 -10 --------- Run | Yrd Mat Sub Machines Accessed 5 | . 5 . Terminals 4 | . 4 . Fabricators . | . . . Repair Stations 1 | . 1 . Recycling Units . | . . . Scanalyzers . | . . . Garrison Access . | . . . Total Hacks 14 | . 14 . Successful 6 | . 6 . Failed 8 | . 8 . Catastrophic . | . . . Database Lockouts . | . . . Manual . | . . . Terminals 11 | . 11 . Fabricators . | . . . Repair Stations 3 | . 3 . Recycling Units . | . . . Scanalyzers . | . . . Garrison Access . | . . . Terminal Hacks 4 | . 4 . Locate Traps 2 | . 2 . Zone Layout 2 | . 2 . Fabricator Hacks . | . . . Repair Station Hacks 2 | . 2 . Scan Component 1 | . 1 . Repair 1 | . 1 . Recycling Unit Hacks . | . . . Scanalyzer . | . . . Garrison Access Hacks . | . . . Unauthorized Hacks . | . . . Terminals . | . . . Fabricators . | . . . Repair Stations . | . . . Recycling Units . | . . . Scanalyzers . | . . . Garrison Access . | . . . Data Cores Recovered . | . . . Used . | . . . Hacking Detections 4 | . 4 . Full Trace Events 1 | . 1 . Feedback Events . | . . . Feedback Blocked . | . . . Robot Schematics Acquired . | . . . Robots Built . | . . . Authchips . | . . . Time . | . . . Total Robot Build Rating . | . . . Part Schematics Acquired . | . . . Parts Built . | . . . Authchips . | . . . Time . | . . . Total Part Build Rating . | . . . Parts Repaired 1 | . 1 . Time 26 | . 26 . Parts Recycled . | . . . Recycled Matter . | . . . Retrieved Matter . | . . . Retrieved Components . | . . . Parts Scanalyzed . | . . . Part Schematics Acquired . | . . . Parts Damaged . | . . . Bothacking | -11 -10 -10 ------------ Run | Yrd Mat Sub Used RIF Installer . | . . . Robots Hacked . | . . . Non-combat . | . . . Combat . | . . . Robot Hacks Applied . | . . . Relay Couplers Released . | . . . Fabnet Peak Effective % . | . . . Robots Rewired . | . . . Allies Hacked . | . . . Hacks Repelled . | . . . Allies | -11 -10 -10 -------- Run | Yrd Mat Sub Total Allies . | . . . Largest Group . | . . . Highest-Rated Group . | . . . Highest-Rated Ally . | . . . Total Orders . | . . . Ally Attacks . | . . . Total Damage . | . . . Kills . | . . . Allies Corrupted . | . . . Allies Melted . | . . . Intel | -11 -10 -10 ------- Run | Yrd Mat Sub Robot Analysis Total . | . . . Derelict Logs Recovered 1 | . . 1 Drone Launches . | . . . Drone Recoveries . | . . . Exploration | -11 -10 -10 ------------- Run | Yrd Mat Sub Turns Passed 2177 | 63 1804 310 Spaces Moved 1171 | 35 983 153 Core 10 | 6 . 4 Treads 1160 | 29 983 148 Legs 1 | . . 1 Wheels . | . . . Hover . | . . . Flight . | . . . Fastest Speed 50 | 50 160 140 Average Speed 160 | 148 160 164 Slowest Speed 350 | 160 160 350 Overloaded Moves . | . . . Propulsion Burnouts . | . . . Robots Hopped . | . . . Cave-ins Triggered . | . . . Exploration Rate (%) 37 | 4 93 14 Regions Visited 2 Branch Regions 1 Pre-discovered Areas . | . . . Known Exits Taken 1 | . 1 . Unknown Exits Taken 1 | 1 . . Scrap Searched 3 | . . 3 Spaces Dug . | . . . Terrain Destroyed 16 | . 16 . Melee . | . . . Projectile . | . . . AOE 16 | . 16 . Terrain Rammed . | . . . Walls Destroyed . | . . . Machines Disabled . | . . . Actions | -11 -10 -10 --------- Run | Yrd Mat Sub Total 1348 | 46 1125 177 Wait 68 | . 68 . Move 1169 | 34 982 153 Hop . | . . . Pick Up 22 | 6 15 1 Fast Attach . | . . . Attach 12 | 6 4 2 Detach . | . . . Swap 7 | . 6 1 Drop 5 | . 3 2 Fire 65 | . 47 18 Melee . | . . . Ram . | . . . Kick . | . . . Crush . | . . . Escape Stasis . | . . . Rewire . | . . . Trap . | . . . Miscellaneous . | . . . Route ------- -11/Scrapyard -10/Materials (discovered 4 exits: [*Mat x3] / *Sub) -10/Subcaves (discovered 1 exit: Mat) History --------- Turn | Location | Event 28 | -11/Scrapyard | Discovered new exit (range 16) 64 | -11/Scrapyard | Entered Materials 312 | -10/Materials | Build established: Mutant 361 | -10/Materials | Discovered new exit (range 15) 675 | -10/Materials | Discovered new exit (range 4) 942 | -10/Materials | Discovered new exit (range 3) 975 | -10/Materials | Repaired Lgt. Treads 1707 | -10/Materials | Discovered new exit (range 5) 1740 | -10/Materials | Identified exit to Subcaves 1868 | -10/Materials | Entered Subcaves 1919 | -10/Subcaves | Core integrity fell below 50% 1935 | -10/Subcaves | Identified exit to Materials 2172 | -10/Subcaves | Core integrity fell below 20% 2178 | -10/Subcaves | Destroyed by RK-UX1(R) with Subdweller Machine Gun Last Messages --------------- Found Sub. Machine Gun. Found Mak. Light Armor Plating. Found 41 Matter. Acquired 41 matter. Searching scrap... Found Battle Rifle. Found Sub. Optics. Found 46 Matter. Acquired 17 matter. Searching scrap... Found Sub. Monowheel. Found 30 Matter. Dropped Assault Rifle. Acquired 10 matter. C0-1XD(u) builds Twisted Machinery. ZA-ZSF(R) suffers critical hit (Destroy). Lgt. Treads destroyed. Critical hit (Destroy). Mak. Leg destroyed. Battle Rifle destroyed. Map ----- +----------------------------------------------------+ | ???????????????????????????????????????????? | | ???????????????????????????????????????????? | | ???????????????????????????????????????????? | | ???????????????????????????????????????????? | | ???????????????????????????????????????????? | | ???????????????????????????????????????????? | | ???????????????????????????????????????????? | | ????????????????????????#??????????????????? | | ???????????????????????? ??????????????????? | | ???????????????????????? ??????????????????? | | ???????????????????????? ?????????????????? | | ??????????????????????? ?????? ???????????? | | ??????????????????????? ????? ????????????? | | ??????????????????????? ""??# ?#???????????? | | ??????????????????????? "### ? ????????????? | | ??????????????????????? "" #????????????? | | ??????????????????????? "# # ?????????????? | | ????????????????????### " # #"#? #?????????? | | ???????????????????## " " "? ????????? | | ???????????????????# " " " ????????? | | ???????????????????# "" "#??????????? | | ???????????????????# " ##????????????? | | ??????????????###### "#????????????? | | ??????????????# ##"###"" " #??????????? | | ??????????????# RR##?##??????????????????? | | ??????????????## @#??????????????????????? | | ???????????????## #??????????????????????? | | ???????????????## #??????????????????????? | | ???????????????# #??????????????????????? | | ???????????????# #??????????????????????? | | ???????????????# ##??????????????????????? | | ??????????????## ##???????????????????????? | | ??????????????# #????????????????????????? | | ??????????????# #????????????????????????? | | ??????????????# ##???????????????????????? | | ??????????????# #???????????????????????? | | ??????????????## #???????????????????????? | | ??????????????# ##???????????????????????? | | ??????????????## #???????????????????????? | | ??????????????## #???????????????????????? | | ??????????????# #???????????????????????? | | ??????????????## ##???????????????????????? | | ??????????????# #???????????????????????? | | ??????????????## #????####???????????????? | | ??????????????# ###### #???????????????? | | ?????#######?### #???????????????? | | ?????#"""" ### #???????????????? | | ?????# " = "### ##???????????????? | | ?????# ##%! "## ##???????????????? | | ????????#% ## #???????????????? | +----------------------------------------------------+ Best States ------------- Heat Dissipation 25 Energy Generation 14 Energy Capacity 280 Matter Stores 300 Matter Capacity 300 Sight Range 16 Robot Scan Range 14 Terrain Scan Density 10 Evasion (%) 40 Recoil Reduction 2 Item Schematics ----------------- None Robot Schematics ------------------ None Fabricated ------------ Nothing Alien Tech Used ----------------- None Achievements -------------- None Challenges ------------ None Game ------ Seed NeutrinoPointyVibroblade Manual? 0 Play Time 00:16:44 Cumulative 13.5 hours Start 2025.03.18 @ 18:22:28 End 2025.03.18 @ 18:37:36 Sessions 1 Manual Loads 0 Difficulty Rogue Special Mode None Game No. 26 Rogue 26 Adventurer 0 Explorer 0 Win Type - Total 0 Types 0/0/0/0/0/0/0/0/0 Lore% 9 Gallery% 16 Achievement% 14 Wizard Run 0 Options --------- Layout 1 ASCII 0 Keyboard 0 Movement Mouse Keybinds 0 Fullscreen 2 Font 24/Smallcaps Map View 50x35 Zoom Use 0% Tactical HUD 0 Map Filters NONE Filters NONE Steam 1 RUN: 3830cc68-51f8-4b46-98d5-8f40e41c89f1